Cogmind - Beta 9.6 *** ADVENTURER MODE // 2020.05.29 @ 14:00:28 Player: Haraguro Result: Destroyed by G-34 Mercenary with Small Laser Performance ------------- Evolutions (1) 500 Regions Visited (2) 400 Robots Destroyed (42) 210 Value Destroyed (1094) 1094 Prototype IDs (2) 40 Alien Tech Used (0) 0 Bonus (11) 11 TOTAL SCORE: 2255 Bonus ------- High Alert Combat Kills 11 Cogmind --------- Core Integrity 0/400 Matter 300/300 Energy 260/280 System Corruption 0% Temperature Cool (6) Movement Core (700) Ox13 Location -9/Materials Parts ------- > --- POWER (1) -------- Heavy Ion Engine > --- PROPULSION (2) --- (None) > --- UTILITY (4) ------ Heat Sink Medium Storage Unit Large Storage Unit High-powered Tractor Beam > --- WEAPON (2) ------- Beam Rifle Improved Assault Rifle > --- INVENTORY (14) --- Light Ion Engine Peak State ------------ > --- POWER ------------ Heavy Ion Engine > --- PROPULSION ------- Aluminum Leg Aluminum Leg > --- UTILITY ---------- Heat Sink Large Storage Unit Terrain Scanner Terrain Scan Processor > --- WEAPON ----------- Improved Assault Rifle Improved Assault Rifle > --- INVENTORY -------- Light Ion Engine Heavy Ion Engine Aluminum Leg Aluminum Leg Heat Sink Medium Storage Unit High-powered Tractor Beam High-powered Tractor Beam Improved Assault Rifle [Rating: 17] Favorites ----------- Power Ion Engine Engine Ion Engine Propulsion Aluminum Leg Leg Aluminum Leg Utility Terrain Scan Processor Device Heat Sink Storage Large Storage Unit Processor Terrain Scan Processor Weapon Assault Rifle Energy Gun EM Pulse Gun Ballistic Gun Assault Rifle Launcher Grenade Launcher Build | -11 -10 -9 ------- Run | Scr Mat Mat Slots Evolved 2 | . . 2 Power . | . . . Propulsion . | . . . Utility 2 | . . 2 Weapon . | . . . Parts Attached 44 | 6 5 33 Power 6 | 1 1 4 Engine 6 | 1 1 4 Core . | . . . Reactor . | . . . Propulsion 13 | 2 2 9 Treads . | . . . Leg 13 | 2 2 9 Wheel . | . . . Hover . | . . . Flight . | . . . Utility 14 | 1 2 11 Device 9 | . 1 8 Storage 4 | 1 . 3 Processor 1 | . 1 . Hackware . | . . . Protection . | . . . Artifact . | . . . Weapon 11 | 2 . 9 Energy Gun 6 | 1 . 5 Energy Cannon . | . . . Ballistic Gun 4 | 1 . 3 Ballistic Cannon . | . . . Launcher 1 | . . 1 Special Weapon . | . . . Impact Weapon . | . . . Slashing Weapon . | . . . Piercing Weapon . | . . . Special Melee Weapon . | . . . Unidentified Prototypes 2 | . . 2 Parts Lost 20 | . . 20 Power 1 | . . 1 Propulsion 4 | . . 4 Utility 6 | . . 6 Weapon 9 | . . 9 Highest Loss Streak 11 | . . 11 Average Slot Usage (%) 92 | . 94 91 Engine 11 | . 14 11 Leg 22 | . 28 20 Device 14 | . . 18 Storage 11 | . 14 11 Processor 10 | . 8 10 Energy Gun 10 | . 14 9 Ballistic Gun 9 | . 14 7 Launcher 1 | . . 2 Naked Turns . | . . . Heaviest Build 32 | 11 14 32 Greatest Support 20 | 20 20 20 Greatest Overweight (x) 3 | . . 3 Average Overweight (x) . | . . . Largest Inventory Capacity 14 | 6 6 14 Average Capacity 8 | 5 6 9 Most Carried 10 | 2 6 10 Average Carried 6 | 1 3 7 Final Capacity 14 | 6 6 14 Final Carried 6 | 2 6 1 Class Distribution -------------------- 50% | Mutant 49% | Scavenger-Mutant Dominant Class ---------------- Mutant | -10/Materials Scavenger-Mutant | -9/Materials Resources | -11 -10 -9 ----------- Run | Scr Mat Mat Matter Collected 900 | 216 154 530 Remotely 122 | . . 122 Salvage Created 1330 | . 346 984 Parts 83 | . 25 58 Haulers Intercepted 1 | . . 1 Recyclers Shooed 4 | . . 4 Parts Field Recycled . | . . . Retrieved Matter . | . . . Parts Self-Destructed . | . . . Prevented . | . . . Kills | -11 -10 -9 ------- Run | Scr Mat Mat Combat Hostiles Destroyed 30 | . 9 21 Guns 23 | . 7 16 AOE 7 | . 2 5 Classes Destroyed 8 | . 3 5 Worker 2 | . . 2 Builder 6 | . 4 2 Hauler 1 | . . 1 Recycler 1 | . . 1 Watcher 2 | . . 2 Swarmer 6 | . 6 . Grunt 17 | . 3 14 Sentry 7 | . . 7 Best Kill Streak 11 | . 11 8 Combat Bots Only 3 | . 3 3 Max Kills in Single Turn 2 | . 2 2 Gunslinging 1 | . 1 . Exploded 2 | . 2 2 Melee . | . . . Uniques/NPCs Destroyed . | . . . Combat | -11 -10 -9 -------- Run | Scr Mat Mat Damage Taken 2178 | . 164 2014 Core 441 | . 34 407 Absorbed by Shields . | . . . Core Remaining (%) 93 | 100 86 . Volleys Fired 108 | . 20 88 Largest 2 | . 2 2 Hottest 115 | . 60 115 Shots Fired 178 | . 40 138 Gun 167 | . 40 127 Cannon . | . . . Launcher 11 | . . 11 Special . | . . . Kinetic 83 | . 20 63 Thermal 56 | . . 56 Explosive 11 | . . 11 Electromagnetic 28 | . 20 8 Robot Hit Streak 34 | . 10 34 Robot Miss Streak 3 | . 2 3 Penetration Max . | . . . Secondary Targets 3 | . 1 2 Max Gunslinging Chain 1 | . 1 1 Shots Hit Robots 156 | . 28 128 Core Hits 83 | . 17 66 Critical Hits . | . . . Critical Kills . | . . . Critical Parts Destroyed . | . . . Melee Attacks . | . . . Impact . | . . . Slashing . | . . . Piercing . | . . . Sneak Attacks . | . . . Combat Hostiles . | . . . Follow-up Attacks . | . . . Damage Inflicted 2476 | . 424 2052 Guns 1892 | . 369 1523 Cannons . | . . . Explosions 568 | . 55 513 Melee . | . . . Ramming 16 | . . 16 Kinetic 892 | . 118 774 Thermal 734 | . 55 679 Explosive 513 | . . 513 Electromagnetic 321 | . 251 70 Impact . | . . . Slashing . | . . . Piercing . | . . . Highest Corruption . | . . . Average Corruption . | . . . Corruption Purged . | . . . Overload Shots . | . . . Overflow Damage 18 | . . 18 Projectiles . | . . . Explosions 18 | . . 18 Melee . | . . . Knockbacks . | . . . Impact . | . . . Kinetic . | . . . Secondary . | . . . Self-Inflicted Damage 109 | . . 109 Shots 5 | . . 5 Rammed 1 | . 1 . Targets Rammed 3 | . 1 2 Kicked 2 | . . 2 Crushed . | . . . Highest Temperature 81 | . 75 81 Average Temperature 27 | . 38 22 Received Heat Transfer 1022 | . 90 932 Siege Activations . | . . . Robots Corrupted . | . . . Combat Hostiles . | . . . Parts Fried . | . . . Impact Corruptions . | . . . Robots Melted . | . . . Combat Hostiles . | . . . Parts Melted 1 | . . 1 Heat Transferred 1597 | . 50 1547 Parts Sabotaged . | . . . Parts Stolen . | . . . Parts Stripped . | . . . Power Chain Reactions 1 | . 1 . Missiles Intercepted . | . . . Alert | -11 -10 -9 ------- Run | Scr Mat Mat Peak Influence 419 | . 240 419 Average Influence 182 | . 112 214 Maximum Alert Level 2 | . 1 2 Low Security (%) 49 | 100 60 42 Level 1 49 | . 39 55 Level 2 1 | . . 1 Level 3 . | . . . Level 4 . | . . . Level 5 . | . . . High Security . | . . . Max Security . | . . . Squads Dispatched 4 | . 1 3 Investigation 1 | . 1 . Extermination . | . . . Reinforcement 3 | . . 3 Assault . | . . . Garrison . | . . . Intercept . | . . . Construction Impeded . | . . . Haulers Reinforced . | . . . Stealth | -11 -10 -9 --------- Run | Scr Mat Mat Distress Signals 4 | . 1 3 Communications Jammed . | . . . Distress Signals . | . . . Times Spotted 41 | . 11 30 Peak Tracking Total 6 | . 5 6 Tactical Retreats . | . . . Traps | -11 -10 -9 ------- Run | Scr Mat Mat Traps Triggered 2 | . 1 1 Indirectly . | . . . Trap Hack Attempts . | . . . Triggered . | . . . Disarmed . | . . . Reprogrammed . | . . . Reused . | . . . Traps Extracted . | . . . Installed . | . . . Triggered . | . . . Machines | -11 -10 -9 ---------- Run | Scr Mat Mat Machines Disabled 3 | . . 3 Max in Single Turn 2 | . . 2 Machines Sabotaged . | . . . Garrisons Compromised . | . . . Overloaded Fab Kills . | . . . Fab Network Shutdowns . | . . . Hacking | -11 -10 -9 --------- Run | Scr Mat Mat Machines Accessed 2 | . 1 1 Terminals 2 | . 1 1 Fabricators . | . . . Repair Stations . | . . . Recycling Units . | . . . Scanalyzers . | . . . Garrison Access . | . . . Total Hacks 3 | . 1 2 Successful 1 | . . 1 Failed 2 | . 1 1 Catastrophic . | . . . Database Lockouts . | . . . Manual . | . . . Terminals 3 | . 1 2 Fabricators . | . . . Repair Stations . | . . . Recycling Units . | . . . Scanalyzers . | . . . Garrison Access . | . . . Terminal Hacks 1 | . . 1 Hauler Manifests 1 | . . 1 Fabricator Hacks . | . . . Repair Station Hacks . | . . . Recycling Unit Hacks . | . . . Scanalyzer . | . . . Garrison Access Hacks . | . . . Unauthorized Hacks . | . . . Terminals . | . . . Fabricators . | . . . Repair Stations . | . . . Recycling Units . | . . . Scanalyzers . | . . . Garrison Access . | . . . Data Cores Recovered . | . . . Used . | . . . Hacking Detections . | . . . Full Trace Events . | . . . Feedback Events . | . . . Feedback Blocked . | . . . Robot Schematics Acquired . | . . . Robots Built . | . . . Matter . | . . . Time . | . . . Total Robot Build Rating . | . . . Part Schematics Acquired . | . . . Parts Built . | . . . Matter . | . . . Time . | . . . Total Part Build Rating . | . . . Parts Repaired . | . . . Time . | . . . Parts Recycled . | . . . Recycled Matter . | . . . Retrieved Matter . | . . . Retrieved Components . | . . . Parts Scanalyzed . | . . . Part Schematics Acquired . | . . . Parts Damaged . | . . . Bothacking | -11 -10 -9 ------------ Run | Scr Mat Mat Used RIF Installer . | . . . Robots Hacked . | . . . Non-combat . | . . . Combat . | . . . Robot Hacks Applied . | . . . Relay Couplers Released . | . . . Robots Rewired . | . . . Allies Hacked . | . . . Hacks Repelled . | . . . Allies | -11 -10 -9 -------- Run | Scr Mat Mat Total Allies . | . . . Largest Group . | . . . Highest-Rated Group . | . . . Highest-Rated Ally . | . . . Total Orders . | . . . Ally Attacks . | . . . Total Damage . | . . . Kills . | . . . Allies Corrupted . | . . . Allies Melted . | . . . Intel | -11 -10 -9 ------- Run | Scr Mat Mat Robot Analysis Total . | . . . Derelict Logs Recovered . | . . . Drone Launches . | . . . Drone Recoveries . | . . . Exploration | -11 -10 -9 ------------- Run | Scr Mat Mat Turns Passed 1093 | 68 209 816 Spaces Moved 518 | 49 112 357 Core 3 | 3 . . Treads . | . . . Legs 515 | 46 112 357 Wheels . | . . . Hover . | . . . Flight . | . . . Fastest Speed 50 | 50 120 120 Average Speed 138 | 115 120 147 Slowest Speed 210 | 120 120 210 Overloaded Moves . | . . . Propulsion Burnouts . | . . . Robots Hopped . | . . . Cave-ins Triggered . | . . . Exploration Rate (%) 24 | 4 28 42 Regions Visited 2 Branch Regions . Pre-discovered Areas . | . . . Known Exits Taken . | . . . Unknown Exits Taken 2 | 1 1 . Scrap Searched . | . . . Spaces Dug . | . . . Terrain Destroyed 72 | . 2 70 Melee . | . . . Projectile . | . . . AOE 72 | . 2 70 Actions | -11 -10 -9 --------- Run | Scr Mat Mat Total 710 | 57 144 509 Wait 13 | 1 5 7 Move 516 | 48 111 357 Hop . | . . . Pick Up 12 | 2 1 9 Fast Attach 17 | 6 2 9 Attach 13 | . . 13 Detach . | . . . Swap 14 | . 3 11 Drop 14 | . 1 13 Fire 108 | . 20 88 Melee . | . . . Ram . | . . . Kick 3 | . 1 2 Crush . | . . . Escape Stasis . | . . . Rewire . | . . . Trap . | . . . Miscellaneous . | . . . Route ------- -11/Scrapyard -10/Materials -9/Materials History --------- Turn | Location | Event 44 | -11/Scrapyard | Discovered new exit (range 12) 69 | -11/Scrapyard | Entered Materials 273 | -10/Materials | Discovered new exit (range 5) 278 | -10/Materials | Entered another Materials area 278 | -9/Materials | Evolved 2 slots: Utility x2 315 | -9/Materials | Build established: Mutant 768 | -9/Materials | Core integrity fell below 50% 795 | -9/Materials | Build established: Scavenger-Mutant 1063 | -9/Materials | Core integrity fell below 20% 1094 | -9/Materials | Destroyed by G-34 Mercenary with Small Laser Last Messages --------------- 01061_ Aluminum Leg destroyed. 01064_ Acquired 45 matter. 01064_ U-05 Engineer lays Concrete. 01064_ Terrain Scanner destroyed. 01066_ Imp. Assault Rifle destroyed. 01068_ Hpw. Tractor Beam destroyed. 01070_ Terrain Scan Processor destroyed. 01072_ R-06 Scavenger collects Aluminum Leg. 01074_ The unstable cave ceiling collapses. 01074_ Y-45 Defender crushed by falling debris. 01075_ R-06 Scavenger collects Particle Gun. 01076_ Y-45 Defender destroyed. 01089_ Acquired 19 matter. 01089_ Acquired 25 matter. 01090_ Acquired 10 matter. 01092_ Acquired 5 matter. 01092_ G-34 Mercenary destroyed. 01092_ Switching to secondary target: G-34 Mercenary. 01092_ U-05 Engineer builds a Wall. 01093_ Acquired 8 matter. Map ----- +----------------------------------------------------+ | ??????????????????????##?????#?#?# | | ?????????????????????????????############# | | ??????????????????????????#??# | | ?????????????????????#???#?#?# | | ??????????????????????#?#??#?# """ """ "" | | ??????????????????????#??????# """ """ | | ?????????????????????#?????#?# """ """ | | ????????????????????????#??### = | | ?????????????????????#?#?##?########### | | ????????????????????#???##??## | | ?????????????????????######?## | | ????????????????????#?######## | | ????????????#???????###=!! # #######+# | | ?????????#??#??????#??#=! # T### | | ???????????????##?#?#?#!! # ##?# | | ????????#???#????#?#??# + #### """ | | ??????????#????#?#??### "T" # # ## R" | | ??????????##?#???###### #### """ | | ?????##????#??#?####### ##### + | | ????????##????#?# ##?#######+########## | | ????????#?#?#??## ###?## = #??#### | | ?????????######## == ####?# " * ####### | | ????#??### # =! ###?## * ##??##? | | ?????#??## # ###### "" * ####?#? | | ?????????# # ###### # ? | | ????#???## """ #@ ! ##### """ == #??""" | | ???##??### """ # ##### """ # """ | | ???????#?# """ # =% g##### "" ## ??? | | ????????######/##=#u## # ## ? ? | | ??????##?#?# ! % ########+##? ??? | | ???##????#?# =% ###?### | | ??????????#########+## ## #????#? | | ????###?##???#??? ##+####+## T###??? | | ?????#????#??#?*! # "%" # ###?#?? | | ??????#?#??####! ]#""" * # # ??? | | ????????##????# #""" # # ""?? | | ???????????##?# "Y" #""" # + ??"? | | ???????#??##?## """ # ######?"""?? | | ??????????????# ######""" ###??#????? | | ???????##??#?###??####""" #?#?#? ????? | | ??????????#??##???#??#?"" #?##??#??#?? | | ????????#????#??#???#?? #??#??##??# | | ???????????#???###????############??#?#??? | | ??????????????????#?#??#???##?#?#?#?#????? | | | | | | | | | | | | | +----------------------------------------------------+ Best States ------------- Heat Dissipation 48 Energy Generation 14 Energy Capacity 280 Matter Stores 300 Matter Capacity 300 Sight Range 16 Terrain Scan Range 14 Terrain Scan Density 85 Heat Shielding 150 Resistance: KI 20 Resistance: TH 20 Resistance: EX 20 Resistance: EM 20 Resistance: I 20 Resistance: S 20 Resistance: P 20 Evasion (%) 40 Offensive Hacking 10 Item Schematics ----------------- None Robot Schematics ------------------ None Fabricated ------------ Nothing Alien Tech Used ----------------- None Achievements -------------- None Challenges ------------ None Game ------ Seed MissileHeatFilter Manual? 0 Play Time 00:12:24 Cumulative 73.6 hours Start 2020.05.29 @ 13:41:47 End 2020.05.29 @ 14:00:28 Sessions 1 Manual Loads 0 Difficulty Adventurer Special Mode None Game No. 40 Rogue 25 Adventurer 15 Explorer 0 Win Type - Total 0 Types 0/0/0/0/0/0/0 Lore% 13 Gallery% 31 Achievement% 25 Wizard Run 0 Options --------- ASCII 0 Keyboard 0 Movement Mouse Keybinds 0 Fullscreen 2 Font 18/Terminus Map View 76x50 Tactical HUD 1 Map Filters NONE Filters NONE Steam 1 RUN: 946e28ee-3caf-46b8-9a82-d4d7d8a7656a